bitfinex/quotes_SOLUSD_20211001
["timestamp","ask_amount","ask_price","bid_price","bid_amount"]
[1633046609221,27.8,142.09,141.96,0.02088]
[1633046609624,0.02088,142.2,141.96,0.02088]
[1633046609825,21.87325076,142.15,141.96,0.02088]
[1633046610021,21.87325076,142.15,141.96,30.80038455]
[1633046610226,21.87325076,142.15,141.97,0.02088]
[1633046610423,21.87325076,142.15,141.97,18.57088]
[1633046610621,21.87325076,142.15,141.98,0.02088]
[1633046611224,31.18035296,142.15,141.98,0.02088]
[1633046611421,31.18035296,142.15,141.97,0.02088]
[1633046612621,48.69245929,142.15,141.95,0.02088]
[1633046612823,29.26116091,142.07,141.9,0.02088]
[1633046613425,29.26116091,142.07,141.9,29.13927344]
[1633046613622,29.26116091,142.07,141.91,0.02088]
[1633046613822,29.26116091,142.07,141.93,30.0]
[1633046614025,29.26116091,142.07,141.94,0.02088]
[1633046615025,29.26116091,142.07,141.94,19.18788]
[1633046615226,18.62207122,142.09,141.94,19.18788]
[1633046615426,17.53298633,142.15,141.94,19.18788]
[1633046615629,9.31037981,142.1,141.94,0.02088]
[1633046616025,9.3097241,142.11,141.94,0.02088]
[1633046616226,28.43615649,142.1,141.93,30.0]
[1633046616425,0.02088,142.09,141.93,30.0]
[1633046616825,0.02088,142.09,141.94,29.11839344]
[1633046617024,0.02088,142.09,141.94,44.57139344]
[1633046617423,27.82088,142.16,141.95,0.02088]
[1633046617626,9.3071022,142.15,141.95,29.13927344]
[1633046617827,27.82088,142.16,141.95,64.46927344]
[1633046618126,27.82088,142.16,141.96,70.92]
[1633046618327,25.58485439,142.15,141.96,70.92]
[1633046618523,25.58485439,142.15,141.96,88.77791811]
[1633046618724,25.58485439,142.15,141.97,35.35088]
[1633046618924,25.58485439,142.15,141.98,0.02088]
[1633046619126,27.8,142.12,141.98,0.02088]
[1633046619523,27.8,142.12,141.98,17.87879811]
[1633046619724,27.8,142.12,141.99,70.92]
[1633046619924,27.8,142.12,142.0,0.02088]
[1633046620123,27.8,142.12,142.0,41.48779811]
[1633046620325,27.8,142.12,142.01,17.87879811]
[1633046620523,22.43844165,142.18,142.02,0.02088]
[1633046620825,9.30317211,142.21,142.02,0.02088]
[1633046621424,9.3038269,142.2,142.02,0.02088]
[1633046621627,26.18819318,142.19,141.98,408.65160323]
[1633046621825,0.02088,142.18,141.98,408.65160323]
[1633046622231,21.59820214,142.15,141.98,408.65160323]
[1633046623828,21.59820214,142.15,141.96,30.0]
[1633046623829,182.05277385,142.15,141.96,30.0]
[1633046624029,22.16237188,142.08,141.96,30.0]
[1633046624227,22.16237188,142.08,141.94,30.0]
[1633046624430,0.02088,142.11,141.94,30.0]
[1633046624630,0.02088,142.12,141.95,70.92]
[1633046624829,0.02088,142.12,141.95,102.1732101]
[1633046625031,9.57632958,142.13,141.95,66.5832101]
[1633046625235,9.57632958,142.13,141.95,31.2532101]
[1633046625429,29.18872068,142.12,141.96,3.44699661]
[1633046625630,29.18872068,142.12,141.97,3.45004493]
[1633046625830,29.18872068,142.12,141.96,40.2464]
[1633046625831,29.18872068,142.12,141.98,3.46577429]
[1633046626232,29.18872068,142.12,141.97,3.51473742]
[1633046626430,29.18872068,142.12,141.97,0.02088]
[1633046627233,29.18872068,142.12,141.98,3.48864873]
[1633046627432,29.18872068,142.12,141.99,3.48770419]
[1633046627632,29.18872068,142.12,141.98,3.4815739]
[1633046627832,72.0917,142.17,141.98,3.4815739]
[1633046628034,90.31607648,142.18,141.99,3.42066055]
[1633046628236,74.23115348,142.18,142.0,3.40294293]
[1633046628432,74.23115348,142.18,141.99,16.127]
[1633046628433,74.23115348,142.18,142.01,3.39764805]
[1633046628831,103.48171305,142.18,142.01,3.39764805]
[1633046629034,103.46083305,142.18,142.01,3.39764805]
[1633046629933,103.46083305,142.18,142.0,34.6489935]
[1633046629934,47.86083305,142.18,142.0,34.6489935]
[1633046630134,47.86083305,142.18,142.0,105.5689935]
[1633046630334,47.86083305,142.18,142.0,34.6489935]
[1633046630534,47.86083305,142.18,142.0,0.02088]
[1633046630733,18.63115348,142.18,141.99,3.44217515]
[1633046630936,18.63115348,142.18,142.0,34.70824602]
[1633046631137,0.02088,142.18,142.01,74.36968877]
[1633046631334,0.02088,142.22,142.01,74.36968877]
[1633046631537,0.02088,142.22,142.02,3.4142009]
[1633046631734,25.27525261,142.22,142.02,3.4350809]
[1633046632136,0.02088,142.21,142.02,3.4142009]
[1633046632737,25.27525261,142.22,142.02,3.4142009]
[1633046632936,25.29613261,142.22,142.02,3.4350809]
[1633046633138,25.27525261,142.22,142.06,17.5855]
[1633046633339,25.27525261,142.22,142.06,40.3695]
[1633046633938,25.27525261,142.22,142.05,0.02088]
[1633046634139,52.35338514,142.22,142.02,20.49253905]
[1633046634337,52.35338514,142.22,142.01,76.47818]
[1633046634338,78.0545,142.21,142.01,79.94504799]
[1633046634738,0.02088,142.2,142.01,76.4573]
[1633046635140,16.96025633,142.19,142.0,3.49624594]
[1633046635342,26.28478001,142.18,141.99,3.50269326]
[1633046635541,26.28478001,142.18,142.0,3.48434574]
[1633046635740,26.28478001,142.18,142.02,3.4541287]
[1633046635942,26.28478001,142.18,142.03,3.44871242]
[1633046636141,26.28478001,142.18,142.03,26.75771242]
[1633046636342,26.28478001,142.18,142.02,3.46039623]
[1633046636540,26.28478001,142.18,142.01,21.07145395]
[1633046637141,26.28478001,142.18,142.01,21.05057395]
[1633046637542,26.28478001,142.18,142.01,3.45977395]
[1633046637740,26.28478001,142.18,142.0,3.5382249]
[1633046638342,382.57725337,142.17,141.99,33.56352209]
[1633046638541,382.59813337,142.17,141.99,30.0]
[1633046638741,0.02088,142.16,141.99,33.60798502]
[1633046638946,0.02088,142.16,142.0,3.62349659]
[1633046640341,23.69912202,142.15,142.0,3.62349659]
[1633046640543,23.72000202,142.15,142.0,3.62349659]
[1633046641743,23.72000202,142.15,142.01,3.60083749]
[1633046642144,23.69912202,142.15,142.0,21.15961005]
[1633046642343,23.69912202,142.15,142.01,3.57431443]
[1633046642544,23.69912202,142.15,142.0,3.57713076]
[1633046642747,23.69912202,142.15,141.98,3.60672972]
[1633046642945,0.02088,142.14,141.98,3.58584972]
[1633046643545,76.86358,142.14,141.98,3.58584972]
[1633046643745,0.02088,142.13,141.98,3.58584972]
[1633046644148,28.47741008,142.12,141.97,33.55559795]
[1633046644349,0.02088,142.11,141.97,30.0]
[1633046644781,0.02088,142.11,141.95,382.00373056]
[1633046645182,16.97789601,142.11,141.95,378.43391226]
[1633046645382,0.02088,142.1,141.94,3.57572689]
[1633046645582,9.31365973,142.05,141.91,3.63250491]
[1633046645782,27.16920553,142.04,141.91,3.63250491]
[1633046645980,27.16920553,142.04,141.9,3.63025068]
[1633046646381,27.16920553,142.04,141.94,3.58644098]
[1633046646583,27.16920553,142.04,141.93,3.6025504]
[1633046646783,27.16920553,142.04,141.92,3.64908698]
[1633046647381,27.16920553,142.04,141.91,3.65909402]
[1633046647783,27.16920553,142.04,141.93,3.63682718]
[1633046647982,27.16920553,142.04,141.94,3.62213618]
[1633046648186,325.24575698,142.07,141.95,3.60587428]
[1633046648582,315.9334095,142.07,141.95,3.60587428]
[1633046648786,315.9334095,142.07,141.96,3.64207701]
[1633046648982,315.9334095,142.07,141.96,9.4155934]
[1633046649283,27.8,142.1,142.0,3.58607196]
[1633046649484,22.27870816,142.12,142.0,27.52207196]
[1633046649684,22.27870816,142.12,142.01,9.33781153]
[1633046650283,22.27870816,142.12,142.01,3.56429514]
[1633046650683,22.27870816,142.12,141.99,3.64137305]
[1633046650884,27.05725253,142.11,141.96,3.70587207]
[1633046651084,2.56448808,142.06,141.93,3.75948688]
[1633046651283,29.6495257,142.05,141.94,3.77531458]
[1633046651483,29.6495257,142.05,141.92,3.77273601]
[1633046651685,29.6495257,142.05,141.91,33.81201056]
[1633046652086,29.6495257,142.05,141.91,30.0]
[1633046652884,29.6495257,142.05,141.89,3.81343398]
[1633046653487,29.6495257,142.05,141.88,3.77693726]
[1633046653685,79.3654,142.04,141.88,3.77693726]
[1633046654084,9.31497234,142.03,141.88,3.77693726]
[1633046654284,21.37981274,142.02,141.88,3.77693726]
[1633046654686,21.37981274,142.02,141.87,3.71225015]
[1633046655285,21.37981274,142.02,141.86,3.69858874]
[1633046655489,21.37981274,142.02,141.88,1.81600695]
[1633046655685,21.37981274,142.02,141.89,1.80574132]
[1633046656286,21.37981274,142.02,141.88,1.79868612]
[1633046656489,392.41257972,142.02,141.88,1.79868612]
[1633046658087,9.31759869,141.99,141.86,1.79898383]
[1633046658287,26.33641758,141.98,141.86,1.79898383]
[1633046658487,26.33641758,141.98,141.85,552.17060327]
[1633046660093,95.97679135,141.98,141.85,552.17060327]
[1633046660293,0.02088,141.97,141.79,1.84952397]
[1633046660691,16.97323235,141.96,141.79,1.84952397]
[1633046660890,26.46926748,141.95,141.79,1.84952397]
[1633046661091,0.02088,141.94,141.79,1.84952397]
[1633046661291,0.02088,141.94,141.8,1.82837202]
[1633046661491,0.02088,141.94,141.79,384.34100304]
[1633046661891,27.82088,141.94,141.79,384.34100304]
[1633046662093,9.32219835,141.92,141.79,382.51435382]
[1633046662293,28.56884748,141.91,141.79,382.51435382]
[1633046662894,28.56884748,141.91,141.79,384.34148463]
[1633046663295,28.56884748,141.91,141.8,1.82191396]
[1633046663495,0.02088,141.94,141.8,1.82191396]
[1633046663698,0.02088,141.95,141.83,1.79632746]
[1633046663895,27.8,141.96,141.83,24.66632746]
[1633046664297,0.02088,142.03,141.83,24.66632746]
[1633046664497,30.03126244,142.01,141.84,1.76287756]
[1633046664895,27.82088,142.0,141.83,24.6301522]
[1633046665097,0.02088,141.99,141.83,24.6301522]
[1633046665295,0.02088,141.99,141.83,1.7601522]
[1633046665499,72.22998,141.99,141.82,1.7912054]
[1633046665699,26.55321668,141.98,141.81,1.8026068]
[1633046666299,9.3391355,141.98,141.81,1.8026068]
[1633046666497,187.472,142.01,141.85,1.80733815]
[1633046666697,371.03276698,142.02,141.87,1.79708921]
[1633046666897,27.8,142.05,141.87,1.79708921]
[1633046667098,0.02088,142.09,141.88,5.79439639]
[1633046667298,29.22499809,142.11,141.88,25.70339639]
[1633046667497,0.02088,142.1,141.89,5.77351639]
[1633046667699,0.02088,142.1,141.89,25.1580625]
[1633046667897,0.02088,142.1,141.9,1.77803845]
[1633046668097,0.02088,142.1,141.91,1.78817726]
[1633046668299,0.02088,142.12,141.94,1.7791918]
[1633046668499,9.57363222,142.17,141.97,4.17611184]
[1633046668500,0.02088,142.13,141.97,4.17611184]
[1633046668699,0.02088,142.16,141.99,1.74876193]
[1633046668903,27.8,142.05,141.99,1.74876193]
[1633046669104,27.8,142.05,142.0,0.02088]
[1633046669302,27.8,142.05,142.0,15.05488]
[1633046669501,27.8,142.05,142.01,0.02088]
[1633046670101,27.8,142.05,142.01,41.12439639]
[1633046670304,27.8,142.05,142.02,0.02088]
[1633046670501,27.8,142.05,142.01,77.11421797]
[1633046670703,27.8,142.05,142.02,5.77351639]
[1633046670903,27.8,142.05,142.0,19.33048169]
[1633046671102,27.8,142.06,142.0,19.33048169]
[1633046671303,27.8,142.06,142.0,17.61178]
[1633046671505,23.24970715,142.08,142.0,17.61178]
[1633046671702,23.24970715,142.08,142.0,0.02088]
[1633046672104,23.24970715,142.08,142.0,30.0]
[1633046673504,20.51247455,142.08,142.0,30.0]
[1633046673706,20.51247455,142.08,141.97,31.7655373]
[1633046673906,0.02088,142.17,141.97,31.7655373]
[1633046674105,0.02088,142.19,141.98,41.84051656]
[1633046674505,304.00164963,142.15,141.99,34.28764381]
[1633046674704,304.00164963,142.15,141.99,40.0611602]
[1633046674908,29.42977027,142.14,142.0,5.77351639]
[1633046675108,29.42977027,142.14,142.0,21.12351639]
[1633046675507,29.42977027,142.14,142.01,5.77351639]
[1633046676105,29.42977027,142.14,141.99,34.28764381]
[1633046676706,29.42977027,142.14,142.0,5.77351639]
[1633046677105,29.42977027,142.14,142.0,29.62051639]
[1633046677311,29.42977027,142.14,142.0,31.47747455]
[1633046677506,29.42977027,142.14,142.0,29.62051639]
[1633046677711,29.42977027,142.14,141.99,34.28764381]
[1633046678112,29.42977027,142.14,141.99,40.0611602]
[1633046678307,29.42977027,142.14,141.99,41.96037403]
[1633046678907,29.42977027,142.14,142.01,402.12450419]
[1633046679507,29.42977027,142.14,142.01,427.96502058]
[1633046679909,0.02088,142.17,142.01,462.25266439]
[1633046680107,0.02088,142.19,142.03,1.90042953]
[1633046680307,27.82088,142.19,142.04,1.91273748]
[1633046680506,27.8,142.19,142.04,74.8125602]
[1633046680710,27.8,142.19,142.05,34.28764381]
[1633046680909,30.26372676,142.18,142.05,34.28764381]
[1633046681506,30.26372676,142.18,142.05,40.0611602]
[1633046681906,30.26372676,142.18,142.05,34.28764381]
[1633046685109,0.02088,142.17,142.05,34.28764381]
[1633046685310,0.02088,142.17,142.03,17.49827542]
[1633046685513,0.02088,142.17,142.01,402.12450419]
[1633046686314,0.02088,142.17,142.01,434.53437023]
[1633046686911,0.02088,142.17,142.01,32.40986604]
[1633046687512,0.02088,142.17,141.98,19.60090597]
[1633046688313,0.02088,142.17,141.98,52.01077201]
[1633046689113,0.02088,142.17,141.98,50.00546604]
[1633046689313,0.02088,142.17,141.98,52.03567931]
[1633046689514,0.02088,142.17,141.99,2.02139558]
[1633046689714,0.02088,142.17,142.0,2.03105112]
[1633046689914,0.02088,142.17,142.0,40.21443355]
[1633046690116,103.50162676,142.18,142.02,2.01347877]
[1633046690314,103.50162676,142.18,142.03,0.02088]
[1633046690515,103.50162676,142.18,142.03,7.80850359]
[1633046690719,103.50162676,142.18,142.04,0.02088]
[1633046691120,103.50162676,142.18,142.03,7.78762359]
[1633046691517,103.50162676,142.18,142.04,2.03133569]
[1633046691716,312.14210134,142.21,142.07,17.5851]
[1633046691918,117.7115,142.24,142.09,1.99555267]
[1633046692116,55.6,142.27,142.09,1.99555267]
[1633046692317,55.62088,142.27,142.07,25.36573168]
[1633046692517,9.29989957,142.26,142.08,2.01269835]
[1633046692717,25.11638338,142.24,142.08,2.01269835]
[1633046692918,25.11638338,142.24,142.09,1.98340454]
[1633046693118,25.11638338,142.24,142.1,551.35881007]
[1633046693318,25.11638338,142.24,142.1,566.49181007]
[1633046693520,25.11638338,142.24,142.1,568.47598109]
[1633046693920,25.11638338,142.24,142.1,566.49181007]
[1633046694122,25.11638338,142.24,142.11,0.02088]
[1633046694519,25.11638338,142.24,142.11,1.97439148]
[1633046694720,25.11638338,142.24,142.12,0.02088]
[1633046694920,25.11638338,142.24,142.11,0.02088]
[1633046695320,25.11638338,142.24,142.1,551.35881007]
[1633046695720,9.30186282,142.23,142.1,551.35881007]
[1633046695923,25.11638338,142.24,142.1,551.35881007]
[1633046696122,25.11638338,142.24,142.09,30.0]
[1633046696522,25.11638338,142.24,142.09,31.99350522]
[1633046696721,9.30317211,142.21,142.09,1.99350522]
[1633046696921,39.60411477,142.2,142.09,1.99350522]
[1633046697521,39.60411477,142.2,142.1,2.00497126]
[1633046698324,39.60411477,142.2,142.11,2.03049011]
[1633046698726,30.30028787,142.2,142.14,1.99766411]
[1633046698926,30.30028787,142.2,142.15,1.99300608]
[1633046699126,9.30317211,142.21,142.15,23.84000608]
[1633046699326,88.9834539,142.25,142.15,23.84000608]
[1633046699725,88.9834539,142.25,142.14,1.96224696]
[1633046699926,88.9834539,142.25,142.13,1.97344847]
[1633046699927,9.30120831,142.24,142.13,1.97344847]
[1633046700125,34.63215957,142.23,142.15,1.99905907]
[1633046700325,25.33029675,142.23,142.15,1.99905907]
[1633046700926,25.33029675,142.23,142.13,2.02610496]
[1633046701126,9.30251742,142.22,142.14,2.02908931]
[1633046701726,9.30251742,142.22,142.13,2.03226184]
[1633046701926,18.60503484,142.22,142.12,2.03266584]
[1633046702129,25.33029675,142.23,142.11,2.02359777]
[1633046702328,23.19873135,142.2,142.12,2.02105849]
[1633046702528,23.19873135,142.2,142.11,2.03254488]
[1633046702729,23.19873135,142.2,142.12,2.03166683]
[1633046703128,23.19873135,142.2,142.11,2.01697637]
[1633046703328,23.19873135,142.2,142.12,2.01512738]
[1633046706133,23.19873135,142.2,142.11,1.99413281]
[1633046706533,23.19873135,142.2,142.12,1.98912783]
[1633046707536,9.30317211,142.21,142.12,1.98912783]
[1633046707737,9.30317211,142.21,142.15,1.94724514]
[1633046707940,0.02088,142.27,142.16,1.94112893]
[1633046708139,18.86215946,142.3,142.16,1.94112893]
[1633046708537,30.13863069,142.29,142.16,1.94112893]
[1633046708735,30.13863069,142.29,142.15,1.93001539]
[1633046709340,30.15951069,142.29,142.15,1.93001539]
[1633046709938,75.8487,142.28,142.14,1.94951892]
[1633046710341,9.3005539,142.25,142.12,1.97430809]
[1633046710537,28.05841327,142.24,142.12,1.97430809]
[1633046711740,28.05841327,142.24,142.13,2.00520008]
[1633046711942,28.05841327,142.24,142.14,2.00429988]
[1633046712740,28.05841327,142.24,142.13,1.98310259]
[1633046713139,28.05841327,142.24,142.12,1.97730187]
[1633046713740,28.05841327,142.24,142.14,1.96977528]
[1633046714542,28.05841327,142.24,142.15,1.97876956]
[1633046714740,28.05841327,142.24,142.16,1.96981171]
[1633046715340,28.05841327,142.24,142.17,1.95457827]
[1633046715541,9.29924534,142.27,142.16,1.94905081]
[1633046715740,9.29924534,142.27,142.16,20.30205081]
[1633046715939,9.29924534,142.27,142.18,1.9255323]
[1633046716139,9.29924534,142.27,142.13,20.882]
[1633046716140,9.29924534,142.27,142.17,1.92086721]
[1633046716541,27.04885167,142.26,142.17,1.92086721]
[1633046716741,27.04885167,142.26,142.18,1.95321951]
[1633046717742,9.29924534,142.27,142.18,1.95321951]
[1633046717944,9.29924534,142.27,142.19,1.97585459]
[1633046718143,9.29924534,142.27,142.18,1.96706632]
[1633046718342,9.29924534,142.27,142.19,1.97449658]
[1633046718543,9.29924534,142.27,142.2,1.97334798]
[1633046718744,74.1163,142.31,142.21,1.94872572]
[1633046718944,96.6851804,142.32,142.21,1.94872572]
[1633046719145,96.6851804,142.32,142.2,1.92950115]
[1633046719346,96.6851804,142.32,142.22,1.91018895]
[1633046719544,21.7690804,142.32,142.22,1.91018895]
[1633046719747,21.7690804,142.32,142.21,1.91107302]
[1633046720545,21.7690804,142.32,142.2,1.89380767]
[1633046720744,21.7690804,142.32,142.21,1.88932331]
[1633046721946,9.2946683,142.34,142.21,1.88932331]
[1633046722147,9.2946683,142.34,142.22,1.88111703]
[1633046722349,9.2946683,142.34,142.21,1.88363079]
[1633046722950,9.2946683,142.34,142.21,7.65714718]
[1633046723148,9.2946683,142.34,142.22,1.89174269]
[1633046723948,32.65594471,142.34,142.22,1.91262269]
[1633046724150,9.2946683,142.34,142.22,0.02088]
[1633046724853,9.2946683,142.34,142.2,14.152499]
[1633046725048,21.89537579,142.33,142.2,14.152499]
[1633046726649,31.19080789,142.33,142.2,14.152499]
[1633046727650,31.19080789,142.33,142.2,16.02577035]
[1633046728151,31.19080789,142.33,142.2,14.152499]
[1633046728749,31.19080789,142.33,142.2,16.05598063]
[1633046728950,21.89537579,142.33,142.2,16.05598063]
[1633046729349,21.89537579,142.33,142.2,15.55598063]
[1633046729550,21.89537579,142.33,142.2,21.32949702]
[1633046729750,21.89537579,142.33,142.21,1.90529844]
[1633046729950,21.89537579,142.33,142.2,15.55879013]
[1633046731250,21.89537579,142.33,142.2,13.652499]
[1633046732052,21.89537579,142.33,142.21,356.72633333]
[1633046732452,31.19069768,142.33,142.21,356.72633333]
[1633046732655,31.19069768,142.33,142.2,13.652499]
[1633046732853,0.02088,142.32,142.2,13.652499]
[1633046733057,2.54770511,142.32,142.2,13.652499]
[1633046733255,9.2972832,142.3,142.2,13.652499]
[1633046733454,21.49241781,142.29,142.2,13.652499]
[1633046736058,0.02088,142.34,142.2,13.652499]
[1633046736259,27.8,142.35,142.2,38.05864333]
[1633046736457,27.8,142.35,142.21,1.86114705]
[1633046736657,27.8,142.36,142.21,1.86114705]
[1633046737066,23.79703298,142.35,142.21,1.86114705]
[1633046737657,9.58104814,142.37,142.21,1.86114705]
[1633046737861,9.58104814,142.37,142.23,1.89172907]
[1633046737862,9.2946683,142.34,142.23,1.89172907]
[1633046738059,9.2946683,142.34,142.23,17.99172907]
[1633046738257,9.2946683,142.34,142.24,5.77351639]
[1633046738660,9.2946683,142.34,142.24,7.65392263]
[1633046738860,9.2946683,142.34,142.26,1.88016835]
[1633046739060,9.2946683,142.34,142.26,20.49216835]
[1633046739861,9.2946683,142.34,142.27,1.87725453]
[1633046740065,9.2946683,142.34,142.26,20.50489042]
[1633046740262,21.2973038,142.33,142.26,20.50489042]
[1633046740482,9.2946683,142.34,142.26,18.612]
[1633046740861,9.2946683,142.34,142.26,20.50676533]
[1633046741664,9.2946683,142.34,142.26,18.612]
[1633046742666,9.2946683,142.34,142.25,464.86261151]
[1633046743266,9.2946683,142.34,142.27,1.85538695]
[1633046743488,55.6,142.41,142.27,1.85538695]
[1633046743489,55.6,142.41,142.29,1.84000642]
[1633046743670,55.6,142.41,142.3,1.82508923]
[1633046743867,27.8,142.41,142.3,17.31008923]
[1633046744067,22.12958253,142.4,142.3,15.485]
[1633046744468,75.7431,142.45,142.3,15.485]
[1633046745070,0.02088,142.44,142.3,15.485]
[1633046745469,24.63250438,142.43,142.3,15.485]
[1633046745670,24.65338438,142.43,142.3,15.485]
[1633046746270,24.65338438,142.43,142.29,448.60128174]
[1633046746496,24.65338438,142.43,142.29,446.79928315]
[1633046747472,24.65338438,142.43,142.28,1.83914791]
[1633046748472,33.94217452,142.43,142.28,1.83914791]
[1633046751473,33.94217452,142.43,142.29,1.87275691]
[1633046751673,33.94217452,142.43,142.28,1.8764581]
[1633046752080,24.86493807,142.42,142.28,1.8764581]
[1633046753376,24.36493807,142.42,142.28,1.8764581]
[1633046753574,24.36493807,142.42,142.29,396.99691835]
[1633046753976,24.36493807,142.42,142.29,395.09843506]
[1633046754575,24.36493807,142.42,142.29,393.59843506]
[1633046758778,24.36493807,142.42,142.27,1.85914755]
[1633046758978,24.36493807,142.42,142.28,1.85242968]
[1633046759379,24.36493807,142.42,142.28,0.85242968]
[1633046759777,24.36493807,142.42,142.24,11.86268962]
[1633046759978,27.8,142.41,142.24,11.86268962]
[1633046760180,55.6,142.41,142.25,5.77351639]
[1633046760578,55.6,142.41,142.24,32.26616111]
[1633046760579,55.6,142.41,142.24,28.55835305]
[1633046760781,64.89009576,142.41,142.24,28.55835305]
[1633046761183,9.29009576,142.41,142.24,28.55835305]
[1633046761604,37.09009576,142.41,142.24,28.55835305]
[1633046761805,27.8,142.38,142.24,28.55835305]
[1633046762005,22.90161199,142.37,142.24,28.55835305]
[1633046762205,22.90161199,142.37,142.24,0.02088]
[1633046763005,22.90161199,142.37,142.23,423.18747742]
[1633046763006,94.0,142.36,142.23,422.20835742]
[1633046764205,99.77351639,142.36,142.23,422.20835742]
[1633046764405,99.77351639,142.36,142.2,13.652499]
[1633046764606,117.31466983,142.36,142.2,13.652499]
[1633046764805,79.7401,142.35,142.2,13.652499]
[1633046765009,23.94953424,142.34,142.2,13.652499]
[1633046765406,44.39153424,142.34,142.2,13.652499]
[1633046767204,23.94953424,142.34,142.2,13.652499]
[1633046767404,55.6,142.31,142.2,13.652499]
[1633046767606,28.99549142,142.3,142.2,13.652499]
[1633046773309,28.99549142,142.3,142.2,12.652499]
[1633046783415,9.3142414,142.36,142.2,12.652499]
[1633046783616,9.3142414,142.36,142.21,11.70808982]
[1633046783819,9.2933614,142.36,142.21,11.70808982]
[1633046784018,9.2933614,142.36,142.22,5.77351639]
[1633046784218,27.8,142.37,142.23,8.13545094]
[1633046784418,26.52634031,142.36,142.23,11.69287477]
[1633046784617,26.52634031,142.36,142.23,13.90896733]
[1633046784820,26.52634031,142.36,142.23,5.77351639]
[1633046785218,26.52634031,142.36,142.22,3.56908077]
[1633046785418,26.54722031,142.36,142.21,11.6968892]
[1633046785617,26.54722031,142.36,142.2,39.67330539]
[1633046786220,26.54722031,142.36,142.21,8.13750023]
[1633046786821,9.29597557,142.32,142.21,8.13750023]
[1633046787017,27.34595855,142.31,142.21,8.13750023]
[1633046787420,27.34595855,142.31,142.21,11.80538512]
[1633046787618,9.2946683,142.34,142.21,11.80538512]
[1633046787820,9.2946683,142.34,142.22,3.65885213]
[1633046788020,9.2946683,142.34,142.24,3.65306624]
[1633046788420,9.2946683,142.34,142.25,3.72681947]
[1633046788619,27.91997069,142.33,142.25,3.72681947]
[1633046789020,27.91997069,142.33,142.26,3.74958316]
[1633046789420,27.91997069,142.33,142.25,3.75102367]
[1633046790025,9.2940148,142.35,142.25,3.75102367]
[1633046790222,9.2933614,142.36,142.26,3.77254918]
[1633046790823,55.6,142.38,142.25,3.79961688]
[1633046790824,9.2940148,142.35,142.25,3.79961688]
[1633046791022,46.23545217,142.35,142.22,3.83275292]
[1633046791622,27.64742257,142.35,142.23,3.81951368]
[1633046792022,27.64742257,142.35,142.22,3.7960666]
[1633046792423,27.64742257,142.35,142.22,11.9334685]
[1633046792624,27.64742257,142.35,142.22,3.7960666]
[1633046792824,17.5828,142.34,142.21,8.13770526]
[1633046793022,47.12542257,142.35,142.21,8.13770526]
[1633046793023,27.64742257,142.35,142.21,8.13770526]
[1633046793222,9.2946683,142.34,142.21,11.94511744]
[1633046793623,83.2249683,142.34,142.22,3.80359427]
[1633046793923,83.2249683,142.34,142.21,3.80968071]
[1633046794123,83.2249683,142.34,142.21,11.94782678]
[1633046794323,24.15897754,142.32,142.21,11.94782678]
[1633046795323,24.15897754,142.32,142.21,8.13814607]
[1633046796324,24.15897754,142.32,142.2,12.652499]
[1633046796524,29.93249393,142.32,142.2,12.652499]
[1633046796725,24.15897754,142.32,142.2,12.652499]
[1633046797732,27.8,142.28,142.2,12.652499]
[1633046797929,25.9195475,142.27,142.2,12.652499]
[1633046799929,25.9195475,142.27,142.16,3.90164127]
[1633046799930,12.65,142.19,142.16,3.90164127]
[1633046800130,26.82648405,142.18,142.14,3.98679441]
[1633046800332,26.82648405,142.18,142.13,8.14215867]
[1633046800333,70.81567624,142.12,142.11,0.00019161]
[1633046800532,93.92867624,142.12,142.08,0.02088]
[1633046800736,93.92867624,142.12,142.02,12.49773879]
[1633046800932,52.92867624,142.12,142.03,0.02088]
[1633046801131,52.92867624,142.12,142.03,5.77351639]
[1633046801332,52.92867624,142.12,142.04,29.5683998]
[1633046801531,52.92867624,142.12,142.04,35.34191619]
[1633046801731,29.81567624,142.12,142.05,18.20242407]
[1633046802133,29.81567624,142.12,142.06,5.77351639]
[1633046802334,29.81567624,142.12,142.04,64.7283998]
[1633046802936,392.75043941,142.21,142.06,68.0]
[1633046803133,27.8,142.22,142.12,1.97406]
[1633046803333,55.6,142.22,142.12,1.97406]
[1633046803535,55.6,142.22,142.08,17.98345235]
[1633046803934,55.6,142.22,142.09,66.72663006]
[1633046804134,55.6,142.22,142.1,0.02088]
[1633046804333,55.6,142.22,142.1,5.79439639]
[1633046804534,55.6,142.22,142.11,5.79439639]
[1633046804734,9.2985912,142.28,142.12,27.93895462]
[1633046804933,9.2985912,142.28,142.12,33.71247101]
[1633046805137,9.2985912,142.28,142.13,5.77351639]
[1633046805336,9.2985912,142.28,142.13,80.50341639]